fUSD/lending_fUSD_20250417
["ID","MTS","AMOUNT","RATE_DAILY","PERIOD"]
[358306635,1744915842736,-500.0,0.00073971,120]
[358306636,1744915842745,-500.0,0.00073971,120]
[358306637,1744915842755,-500.0,0.00073971,120]
[358306638,1744915842765,-500.0,0.00073971,120]
[358306639,1744915842775,-29357.6,0.00073971,7]
[358306640,1744915842784,-500.0,0.00073971,120]
[358306641,1744915842794,-224.56,0.00073971,120]
[358306642,1744915842803,-350.0,0.00073971,120]
[358306643,1744915842813,-500.0,0.00073971,120]
[358306644,1744915842822,-500.0,0.00073971,120]
[358306645,1744915842832,-500.0,0.00073971,120]
[358306646,1744915842841,-500.0,0.00073971,120]
[358306647,1744915842855,-500.0,0.00073971,120]
[358306648,1744915842865,-500.0,0.00073971,120]
[358306649,1744915842874,-500.0,0.00073971,120]
[358306650,1744915842884,-500.0,0.00073971,120]
[358306651,1744915842894,-500.0,0.00073971,120]
[358306652,1744915843006,-500.0,0.00073971,120]
[358306653,1744915843016,-513.63511304,0.00073971,120]
[358306654,1744915843026,-500.0,0.00073971,120]
[358306655,1744915843036,-500.0,0.00073971,120]
[358306656,1744915843045,-500.0,0.00073971,120]
[358306657,1744915843055,-500.0,0.00073971,120]
[358306658,1744915843064,-500.0,0.00073971,120]
[358306659,1744915843074,-163.92,0.00073971,120]
[358306660,1744915843084,-500.0,0.00073971,120]
[358306661,1744915843093,-500.0,0.00073971,120]
[358306662,1744915843103,-152.83969796,0.00073971,120]
[358306663,1744915843113,-500.0,0.00073971,120]
[358306664,1744915843122,-500.0,0.00073971,120]
[358306665,1744915843132,-500.0,0.00073971,120]
[358306666,1744915843142,-500.0,0.00073971,120]
[358306667,1744915843153,-500.0,0.00073971,120]
[358306668,1744915843163,-500.0,0.00073971,120]
[358306669,1744915843173,-500.0,0.00073971,2]
[358306670,1744915843183,-438.05657617,0.00073971,120]
[358306671,1744915843192,-500.0,0.00073971,120]
[358306672,1744915843201,-237.7499441,0.00073971,120]
[358306673,1744915843211,-500.0,0.00073971,30]
[358306674,1744915843221,-500.0,0.00073971,120]
[358306675,1744915843230,-500.0,0.00073971,120]
[358306676,1744915843239,-500.0,0.00073971,120]
[358306677,1744915843249,-500.0,0.00073971,120]
[358306678,1744915843258,-500.0,0.00073971,120]
[358306679,1744915843267,-500.0,0.00073971,120]
[358306680,1744915843276,-500.0,0.00073971,120]
[358306681,1744915843286,-500.0,0.00073971,120]
[358306682,1744915843295,-500.0,0.00073971,120]
[358306683,1744915843305,-500.0,0.00073971,120]
[358306684,1744915843313,-500.0,0.00073971,120]
[358306685,1744915843323,-500.0,0.00073971,120]
[358306686,1744915843332,-500.0,0.00073971,120]
[358306687,1744915843341,-500.0,0.00073971,120]
[358306688,1744915843352,-500.0,0.00073971,120]
[358306689,1744915843362,-500.0,0.00073971,120]
[358306690,1744915843371,-500.0,0.00073971,120]
[358306691,1744915843380,-500.0,0.00073971,120]
[358306692,1744915843389,-500.0,0.00073971,120]
[358306693,1744915843399,-500.0,0.00073971,120]
[358306694,1744915843408,-604.03,0.00073971,120]
[358306695,1744915843417,-1139.34,0.00073971,120]
[358306696,1744915843427,-500.0,0.00073971,120]
[358306697,1744915843436,-500.0,0.00073971,120]
[358306698,1744915843446,-500.0,0.00073971,120]
[358306699,1744915843456,-576.47,0.00073971,120]
[358306700,1744915843466,-500.0,0.00073971,120]
[358306701,1744915843475,-500.0,0.00073971,120]
[358306702,1744915843485,-500.0,0.00073971,120]
[358306703,1744915843494,-1089.4,0.00073971,120]
[358306704,1744915843504,-500.0,0.00073972,2]
[358306705,1744915843513,-401.20856731,0.00073972,120]
[358306706,1744915843523,-637.76,0.00073972,120]
[358306707,1744915843536,-500.0,0.00073972,120]
[358306708,1744915843545,-328.78337714,0.00073972,120]
[358306709,1744915843554,-500.0,0.00073972,120]
[358306710,1744915843564,-500.0,0.00073972,120]
[358306711,1744915843574,-500.0,0.00073972,120]
[358306712,1744915843583,-500.0,0.00073972,120]
[358306713,1744915843593,-500.0,0.00073972,120]
[358306714,1744915843603,-500.0,0.00073972,120]
[358306715,1744915843612,-500.0,0.00073972,120]
[358306716,1744915843621,-500.0,0.00073972,120]
[358306717,1744915843630,-180.61630623,0.00073972,120]
[358306718,1744915843640,-500.0,0.00073972,120]
[358306719,1744915843649,-500.0,0.00073972,120]
[358306720,1744915843658,-601.55,0.00073972,120]
[358306721,1744915843668,-4192.2,0.00073972,120]
[358306722,1744915843677,-2000.0,0.00074,3]
[358306723,1744915843687,-1000.0,0.00074,120]
[358306724,1744915843696,-703.05,0.00074314,2]
[358306725,1744915843706,-2953.92901118,0.000745,30]
[358306726,1744915843717,-1000.0,0.0007473,90]
[358306727,1744915843727,-1000.0,0.00074732,90]
[358306728,1744915843737,-150.0,0.00074735,60]
[358306729,1744915843746,-150.0,0.00074739,60]
[358306730,1744915843755,-150.0,0.0007474,60]
[358306731,1744915843766,-150.0,0.00074748,60]
[358306732,1744915843775,-1000.0,0.0007475,90]
[358306733,1744915843785,-150.0,0.00074754,60]
[358306734,1744915843794,-150.0,0.00074755,60]
[358306735,1744915843804,-150.0,0.00074757,60]
[358306736,1744915843813,-150.0,0.00074764,60]
[358306737,1744915843824,-1000.0,0.00074767,90]
[358306738,1744915843834,-151.0,0.00074767,120]
[358306739,1744915843844,-150.0,0.00074769,60]
[358306740,1744915843853,-150.0,0.00074771,60]
[358306741,1744915843863,-150.0,0.00074772,60]
[358306742,1744915843872,-861.0,0.00074773,60]
[358306743,1744915843881,-150.0,0.00074779,60]
[358306744,1744915843891,-150.0,0.0007478,60]
[358306745,1744915843900,-150.0,0.00074782,60]
[358306746,1744915843909,-150.0,0.00074783,60]
[358306747,1744915843919,-286.56743676,0.00074786,15]
[358306748,1744915843928,-500.0,0.00074788,120]
[358306749,1744915843938,-500.0,0.00074788,120]
[358306750,1744915843947,-500.0,0.00074788,120]
[358306751,1744915843956,-500.0,0.00074788,120]
[358306752,1744915843967,-500.0,0.00074788,120]
[358306753,1744915843976,-500.0,0.00074788,120]
[358306754,1744915843986,-500.0,0.00074788,120]
[358306755,1744915843995,-500.0,0.00074788,120]
[358306756,1744915844004,-500.0,0.00074788,120]
[358306757,1744915844014,-500.0,0.00074788,120]
[358306758,1744915844023,-816.06,0.00074788,120]
[358306759,1744915844032,-1195.19,0.00074789,120]
[358306760,1744915844040,-500.0,0.00074789,120]
[358306761,1744915844050,-5090.1,0.00074789,120]
[358306762,1744915844060,-692.84,0.00074789,118]
[358306763,1744915844069,-500.0,0.00074789,120]
[358306764,1744915844078,-500.0,0.00074789,120]
[358306765,1744915844088,-639.76211495,0.00074789,120]
[358306766,1744915844098,-500.0,0.00074789,120]
[358306767,1744915844108,-500.0,0.00074789,120]
[358306768,1744915844118,-500.0,0.00074789,120]
[358306769,1744915844131,-500.0,0.00074789,120]
[358306770,1744915844141,-700.95,0.00074789,120]
[358306771,1744915844150,-368.72676784,0.00074789,120]
[358306772,1744915844159,-500.0,0.00074789,120]
[358306773,1744915844168,-773.18,0.00074789,120]
[358306774,1744915844177,-500.0,0.00074789,120]
[358306775,1744915844186,-500.0,0.00074789,120]
[358306776,1744915844195,-500.0,0.00074789,120]
[358306777,1744915844205,-1000.0,0.0007479,90]
[358306778,1744915844215,-150.0,0.00074795,60]
[358306779,1744915844224,-1000.0,0.00074795,90]
[358306780,1744915844234,-150.0,0.00074797,60]
[358306781,1744915844243,-150.0,0.00074799,60]
[358306782,1744915844252,-150.0,0.00074799,60]
[358306783,1744915844261,-150.0,0.00074804,60]
[358306784,1744915844271,-150.0,0.00074805,60]
[358306785,1744915844281,-150.0,0.00074808,60]
[358306786,1744915844291,-150.0,0.00074809,60]
[358306787,1744915844300,-150.0,0.00074809,60]
[358306788,1744915844309,-150.0,0.0007481,60]
[358306789,1744915844319,-150.0,0.00074816,60]
[358306790,1744915844329,-1000.0,0.00074817,90]
[358306791,1744915844339,-150.0,0.00074817,60]
[358306792,1744915844348,-150.0,0.00074819,60]
[358306793,1744915844357,-150.0,0.00074823,60]
[358306794,1744915844367,-150.0,0.00074824,60]
[358306795,1744915844377,-150.0,0.00074827,60]
[358306796,1744915844387,-150.0,0.00074828,60]
[358306797,1744915844397,-150.0,0.00074831,60]
[358306798,1744915844406,-150.0,0.00074838,60]
[358306799,1744915844415,-150.0,0.00074845,60]
[358306800,1744915844425,-150.0,0.00074846,60]
[358306801,1744915844434,-907.29459655,0.00074846,90]
[358306802,1744915844443,-150.0,0.00074847,60]
[358306803,1744915844452,-150.0,0.0007485,60]
[358306804,1744915844463,-34391.48454726,0.00074851,120]
[358306805,1744915844472,-150.0,0.00074855,60]
[358306806,1744915844481,-150.0,0.00074855,60]
[358306807,1744915844490,-150.0,0.00074855,60]
[358306808,1744915844499,-150.0,0.00074856,60]
[358306809,1744915844508,-150.0,0.00074857,60]
[358306810,1744915844517,-150.0,0.00074863,60]
[358306811,1744915844525,-150.0,0.00074864,60]
[358306812,1744915844537,-150.0,0.00074866,60]
[358306813,1744915844546,-150.0,0.00074866,60]
[358306814,1744915844556,-150.0,0.00074866,60]
[358306815,1744915844565,-150.0,0.00074867,60]
[358306816,1744915844575,-150.0,0.00074868,60]
[358306817,1744915844586,-991.52339565,0.00074869,15]
[358306818,1744915844595,-150.0,0.00074869,60]
[358306819,1744915844604,-150.0,0.00074875,60]
[358306820,1744915844615,-150.0,0.00074875,60]
[358306821,1744915844624,-150.0,0.00074875,60]
[358306822,1744915844634,-150.0,0.00074878,60]
[358306823,1744915844643,-150.0,0.00074878,60]
[358306826,1744915844652,-150.0,0.00074879,60]
[358306829,1744915844662,-150.0,0.00074882,60]
[358306831,1744915844671,-150.0,0.00074884,60]
[358306834,1744915844680,-150.0,0.00074887,60]
[358306836,1744915844689,-260.43276102,0.00074887,60]
[358306838,1744915844699,-1000.0,0.00074888,90]
[358306840,1744915844710,-150.0,0.00074891,60]
[358306842,1744915844719,-200.993639,0.00074893,60]
[358306843,1744915844729,-150.0,0.00074893,60]
[358306844,1744915844739,-150.0,0.00074895,60]
[358306845,1744915844748,-150.0,0.00074897,60]
[358306846,1744915844758,-150.0,0.00074897,60]
[358306847,1744915844768,-2241.754001,0.000749,120]
[358306848,1744915844778,-179.40328363,0.000749,58]
[358306849,1744915844787,-455.33733877,0.000749,120]
[358306850,1744915844796,-34391.48454726,0.00074902,120]
[358306851,1744915844806,-150.0,0.00074904,60]
[358306852,1744915844815,-150.0,0.00074912,60]
[358306853,1744915844825,-150.0,0.00074916,60]
[358306854,1744915844834,-150.0,0.00074916,60]
[358306855,1744915844844,-150.0,0.00074917,60]
[358306856,1744915844853,-150.0,0.00074919,60]
[358306857,1744915844863,-150.0,0.00074919,60]
[358306858,1744915844872,-150.0,0.00074921,60]
[358306859,1744915844882,-150.0,0.00074921,60]
[358306860,1744915844893,-150.0,0.00074924,60]
[358306861,1744915844902,-150.0,0.00074926,60]
[358306862,1744915844912,-150.0,0.00074926,60]
[358306863,1744915844921,-150.0,0.00074926,60]
[358306864,1744915844931,-150.0,0.00074929,60]
[358306865,1744915844940,-34391.48454726,0.00074935,120]
[358306866,1744915844950,-150.0,0.00074941,60]
[358306867,1744915844959,-150.0,0.00074943,60]
[358306868,1744915844972,-150.0,0.00074943,60]
[358306869,1744915844982,-150.0,0.00074945,60]
[358306870,1744915844991,-150.0,0.00074946,60]
[358306871,1744915845001,-150.0,0.00074947,60]
[358306872,1744915845011,-150.0,0.00074948,60]
[358306873,1744915845021,-150.0,0.0007495,60]
[358306874,1744915845031,-150.0,0.00074955,60]
[358306875,1744915845040,-150.0,0.00074958,60]
[358306876,1744915845051,-150.0,0.00074959,60]
[358306877,1744915845061,-150.0,0.00074963,60]
[358306878,1744915845071,-150.0,0.00074968,60]
[358306879,1744915845082,-150.0,0.00074969,60]
[358306880,1744915845091,-150.0,0.00074969,60]
[358306881,1744915845102,-150.0,0.00074978,60]
[358306882,1744915845112,-150.0,0.00074979,60]
[358306883,1744915845122,-150.0,0.0007498,60]
[358306885,1744915845223,-150.0,0.00074986,60]
[358306886,1744915845233,-150.0,0.00074987,60]
[358306887,1744915845243,-150.0,0.00074988,60]
[358306888,1744915845252,-150.0,0.00074989,60]
[358306889,1744915845261,-150.0,0.00074995,60]
[358306890,1744915845271,-1000.0,0.00074998,120]
[358306891,1744915845280,-475396.61189208,0.00075,120]
[358306892,1744915845402,-781.5493734,0.00075,120]
[358306893,1744915845450,-17706.51402165,0.00075,120]
[358306894,1744915845466,-313.481129,0.00075,120]
[358306895,1744915845477,-799.74999995,0.00075,120]
[358306896,1744915845686,-151.0,0.00061908,30]
[358306897,1744915845696,-151.0,0.00061908,30]
[358306898,1744915845706,-150.0,0.00074728,60]
[358306899,1744915845716,-150.0,0.00074731,60]
[358306900,1744915845727,-150.0,0.00074743,60]
[358306901,1744915845738,-150.0,0.00074745,60]
[358306902,1744915845747,-150.0,0.00074761,60]
[358306903,1744915845756,-150.0,0.00074765,60]
[358306904,1744915845767,-150.0,0.0007477,60]
[358306905,1744915845776,-150.0,0.00074777,60]
[358306906,1744915845785,-150.0,0.00074777,60]
[358306907,1744915845795,-150.0,0.00074786,60]
[358306908,1744915845804,-150.0,0.00074788,60]
[358306909,1744915845814,-150.0,0.00074802,60]
[358306910,1744915845824,-150.0,0.00074817,60]
[358306911,1744915845834,-150.0,0.00074822,60]
[358306912,1744915845843,-150.0,0.00074829,60]
[358306913,1744915845852,-150.0,0.00074839,60]
[358306914,1744915845862,-150.0,0.0007484,60]
[358306915,1744915845871,-150.0,0.00074843,60]
[358306916,1744915845881,-150.0,0.00074848,60]
[358306917,1744915845891,-150.0,0.00074874,60]
[358306918,1744915845900,-150.0,0.00074885,60]
[358306919,1744915845910,-150.0,0.00074898,60]
[358306920,1744915845920,-150.0,0.00074913,60]
[358306921,1744915845929,-150.0,0.00074921,60]
[358306922,1744915845937,-150.0,0.00074922,60]
[358306923,1744915845947,-150.0,0.00074945,60]
[358306924,1744915845955,-150.0,0.00074952,60]
[358306925,1744915845965,-150.0,0.0007498,60]
[358306926,1744915845974,-150.0,0.00074988,60]
[358306927,1744915845983,-150.0,0.0007499,60]
[358306928,1744915845992,-150.0,0.00074994,60]
[358306929,1744915846001,-333964.39221667,0.00075,120]
[358306930,1744915846034,-150.0,0.00074782,60]
[358306931,1744915846045,-150.0,0.00074807,60]
[358306932,1744915846055,-150.0,0.00074827,60]
[358306933,1744915846065,-150.0,0.00074958,60]
[358306934,1744915846074,-150.0,0.00075,120]
[358307062,1744915848153,-150.0,0.00074733,60]
[358307063,1744915848170,-150.0,0.00074741,60]
[358307064,1744915848184,-150.0,0.00074748,60]
[358307065,1744915848196,-150.0,0.00074751,60]
[358307066,1744915848208,-63.80064329,0.00074793,60]
[358307067,1744915848227,-86.19935671,0.00074793,60]
[358307068,1744915848241,-150.0,0.00074803,60]
[358307069,1744915848254,-150.0,0.00074809,60]
[358307070,1744915848268,-150.0,0.0007481,60]
[358307071,1744915848283,-150.0,0.00074815,60]
[358307072,1744915848296,-47.47113739,0.00074819,60]
[358307073,1744915848311,-102.52886261,0.00074819,60]
[358307074,1744915848322,-150.0,0.00074826,60]
[358307075,1744915848334,-150.0,0.00074838,60]
[358307076,1744915848348,-150.0,0.00074839,60]
[358307077,1744915848361,-150.0,0.00074842,60]
[358307078,1744915848374,-150.0,0.00074849,60]
[358307079,1744915848387,-150.0,0.00074852,60]
[358307080,1744915848400,-150.0,0.00074853,60]
[358307081,1744915848414,-150.0,0.00074855,60]
[358307082,1744915848427,-150.0,0.00074857,60]
[358307083,1744915848440,-150.0,0.0007486,60]
[358307084,1744915848452,-150.0,0.00074862,60]
[358307085,1744915848466,-150.0,0.00074864,60]
[358307086,1744915848479,-97.47113739,0.00074868,60]
[358307087,1744915848558,-150.0,0.00074838,60]
[358307088,1744915848571,-150.0,0.00074845,60]
[358307089,1744915848584,-150.0,0.00074862,60]
[358307090,1744915848597,-52.52886261,0.00074868,60]
[358307091,1744915848609,-150.0,0.00074871,60]
[358307092,1744915848620,-150.0,0.00074887,60]
[358307093,1744915848632,-150.0,0.00074888,60]
[358307094,1744915848645,-150.0,0.00074891,60]
[358307095,1744915848659,-150.0,0.00074892,60]
[358307096,1744915848670,-150.0,0.00074898,60]
[358307097,1744915848681,-150.0,0.00074898,60]
[358307098,1744915848692,-150.0,0.00074901,60]
[358307099,1744915848704,-150.0,0.00074906,60]
[358307100,1744915848718,-111.04613739,0.00074912,60]
[358307103,1744916039600,250.0,0.00017,2]
[358307104,1744916040662,300.0,0.00019,2]
[358307107,1744916826129,-250.0,0.00054082,2]
[358307108,1744916826158,-153.49,0.000545,54]
[358307109,1744916826187,-153.49,0.000545,54]
[358307110,1744916826210,-299.999999,0.000548,120]
[358307111,1744916826235,-350.0,0.00057328,111]
[358307112,1744916826259,-350.0,0.00059031,111]
[358307113,1744916826283,-250.0,0.00059031,2]
[358307114,1744916826308,-350.0,0.00059031,111]
[358307115,1744916826333,-153.0,0.00063045,60]
[358307116,1744916826501,-153.0,0.00063049,60]
[358307117,1744916826534,-153.0,0.00063049,60]
[358307118,1744916826560,-153.0,0.00063108,60]
[358307119,1744916826585,-153.0,0.00063112,60]
[358307120,1744916826608,-153.0,0.00063112,60]
[358307121,1744916826634,-153.0,0.00063171,60]
[358307122,1744916826660,-153.0,0.00063175,60]
[358307123,1744916826685,-153.0,0.00063175,60]
[358307124,1744916826709,-153.0,0.00063238,60]
[358307125,1744916826735,-153.0,0.00063238,60]
[358307126,1744916826758,-5059.26606614,0.00066,10]
[358307127,1744916829104,-1033.88003055,0.00066,10]
[358307128,1744916853156,-151.0,0.00056394,30]
[358307129,1744916853184,-151.0,0.00056394,30]
[358307130,1744916853208,-308.58563089,0.00066,10]
[358307132,1744917032295,-151.0,0.0005173,30]
[358307133,1744917032306,-151.0,0.0005173,30]
[358307134,1744917032316,-151.0,0.00052794,30]
[358307135,1744917032325,-151.0,0.00052794,30]
[358307136,1744917032335,-350.0,0.00056903,111]
[358307137,1744917032344,-350.0,0.00061181,111]
[358307138,1744917032354,-250.0,0.00061828,2]
[358307139,1744917032364,-845.44649016,0.00068393,2]
[358307140,1744917032375,-4037.47250984,0.00068393,2]
[358307141,1744917032384,-167.05,0.0007116,2]
[358307142,1744917032394,-1200.0,0.00071219,20]
[358307143,1744917032404,-816.293,0.00071229,120]
[358307144,1744917032414,-500.0,0.0007123,120]
[358307145,1744917032424,-500.0,0.0007123,120]
[358307146,1744917032433,-500.0,0.0007123,120]
[358307147,1744917032443,-500.0,0.0007123,120]
[358307148,1744917032453,-500.0,0.0007123,120]
[358307149,1744917032462,-500.0,0.0007123,120]
[358307150,1744917032471,-500.0,0.0007123,120]
[358307151,1744917032480,-500.0,0.0007123,120]
[358307152,1744917032490,-500.0,0.0007123,120]
[358307153,1744917032499,-3668.17,0.0007123,120]
[358307154,1744917032508,-243.63,0.00071231,120]
[358307155,1744917032519,-500.0,0.00071231,120]
[358307156,1744917032529,-500.0,0.00071231,120]
[358307157,1744917032539,-315.9481,0.00071948,2]
[358307158,1744917032549,-477.15,0.00072565,30]
[358307159,1744917032558,-200.0,0.00072656,2]
[358307160,1744917032568,-4581.46173863,0.00072859,2]
[358307161,1744917032577,-23900.0,0.00072869,2]
[358307162,1744917032587,-250.0,0.0007309,120]
[358307163,1744917032598,-168.1,0.00073142,2]
[358307164,1744917032608,-298.79,0.00073149,120]
[358307165,1744917032618,-1000.0,0.00073155,120]
[358307166,1744917032627,-150.0,0.00073327,30]
[358307167,1744917032637,-309.48,0.00073339,2]
[358307168,1744917032647,-198.79,0.00073396,120]
[358307169,1744917032657,-250.0,0.00073404,120]
[358307170,1744917032666,-167.05,0.00073424,2]
[358307171,1744917032675,-568.0,0.00073631,30]
[358307172,1744917032685,-500.0,0.0007397,120]
[358307173,1744917032694,-500.0,0.0007397,120]
[358307174,1744917032704,-500.0,0.0007397,120]
[358307175,1744917032713,-403.1962942,0.0007397,120]
[358307176,1744917032724,-96.8037058,0.0007397,120]
[358307177,1744917032734,-500.0,0.0007397,120]
[358307178,1744917032743,-500.0,0.0007397,120]
[358307179,1744917032752,-500.0,0.0007397,120]
[358307181,1744917032762,-500.0,0.0007397,120]
[358307183,1744917032771,-3668.17,0.0007397,120]
[358307185,1744917032781,-500.0,0.00073971,120]
[358307187,1744917032790,-209.07406652,0.00073971,120]
[358307189,1744917032800,-1180.34259136,0.00073973,120]
[358307190,1744917032812,-270.83,0.00073973,120]
[358307191,1744917032824,-221.85456186,0.00073973,120]
[358307192,1744917032834,-1002.0,0.00074,16]
[358307193,1744917032843,-1000.0,0.00074,3]
[358307194,1744917032852,-397.41935723,0.00074,9]
[358307195,1744917032863,-602.53226605,0.00074,9]
[358307205,1744917038437,-0.04837672,0.00074,9]
[358307206,1744917038448,-1000.0,0.00074,22]
[358307207,1744917038459,-40.91806668,0.00074186,15]
[358307208,1744917038576,-123.5556784,0.00074186,15]
[358307209,1744917038588,-290.78,0.00074247,30]
[358307210,1744917038599,-501.29372215,0.0007435,15]
[358307211,1744917038610,-500.0,0.00074563,15]
[358307212,1744917038621,-150.0,0.00074664,60]
[358307213,1744917038634,-134.6700528,0.00074665,60]
[358307214,1744917038648,-15.3299472,0.00074665,60]
[358307215,1744917038659,-150.0,0.00074677,60]
[358307216,1744917038671,-150.0,0.00074682,60]
[358307217,1744917038683,-150.0,0.00074687,60]
[358307218,1744917038695,-150.0,0.00074697,60]
[358307219,1744917038707,-150.0,0.00074701,60]
[358307220,1744917038718,-117.36729668,0.00074709,60]
[358307221,1744917038733,-32.63270332,0.00074709,60]
[358307222,1744917038745,-150.0,0.00074709,60]
[358307223,1744917038754,-150.0,0.00074719,60]
[358307224,1744917038764,-150.0,0.00074723,60]
[358307225,1744917038775,-150.0,0.00074724,60]
[358307226,1744917038784,-150.0,0.00074725,60]
[358307227,1744917038794,-150.0,0.00074726,60]
[358307228,1744917038805,-150.0,0.00074728,60]
[358307229,1744917038815,-150.0,0.00074734,60]
[358307230,1744917038825,-150.0,0.00074735,60]
[358307231,1744917038835,-150.0,0.00074738,60]
[358307232,1744917038990,-150.0,0.0007474,60]
[358307233,1744917039008,-150.0,0.0007474,60]
[358307234,1744917039022,-150.0,0.00074747,60]
[358307235,1744917039032,-150.0,0.00074747,60]
[358307236,1744917039042,-150.0,0.00074748,60]
[358307237,1744917039052,-150.0,0.00074751,60]
[358307238,1744917039062,-150.0,0.00074752,60]
[358307239,1744917039072,-150.0,0.00074757,60]
[358307240,1744917039081,-150.0,0.00074762,60]
[358307241,1744917039091,-90.84408877,0.00074763,60]
[358307242,1744917039104,-59.15591123,0.00074763,60]
[358307243,1744917039113,-150.0,0.00074766,60]
[358307244,1744917039123,-150.0,0.00074768,60]
[358307245,1744917039132,-150.0,0.00074771,60]
[358307246,1744917039142,-1.84818129,0.00074771,60]
[358307247,1744917039154,-148.15181871,0.00074771,60]
[358307248,1744917039163,-150.0,0.00074772,60]
[358307249,1744917039172,-69.22557631,0.00074773,60]
[358307250,1744917039184,-80.77442369,0.00074773,60]
[358307251,1744917039193,-150.0,0.00074781,60]
[358307252,1744917039203,-150.0,0.00074782,60]
[358307253,1744917039212,-150.0,0.00074783,60]
[358307254,1744917039222,-150.0,0.00074787,60]
[358307255,1744917039231,-150.0,0.00074788,60]
[358307256,1744917039241,-150.0,0.00074788,60]
[358307257,1744917039250,-150.0,0.00074799,60]
[358307258,1744917039259,-150.0,0.00074807,60]
[358307259,1744917039269,-150.0,0.00074816,60]
[358307260,1744917039279,-150.0,0.00074818,60]
[358307261,1744917039289,-150.0,0.00074819,60]
[358307262,1744917039299,-150.0,0.00074821,60]
[358307263,1744917039308,-150.0,0.00074823,60]
[358307264,1744917039318,-150.0,0.00074826,60]
[358307265,1744917039327,-150.0,0.00074842,60]
[358307266,1744917039337,-150.0,0.00074843,60]
[358307267,1744917039347,-150.0,0.00074849,60]
[358307268,1744917039359,-150.0,0.00074852,60]
[358307269,1744917039368,-150.0,0.00074855,60]
[358307270,1744917039377,-150.0,0.00074855,60]
[358307271,1744917039387,-150.0,0.00074856,60]
[358307272,1744917039397,-150.0,0.00074857,60]
[358307273,1744917039406,-150.0,0.00074862,60]
[358307274,1744917039415,-150.0,0.00074866,60]
[358307275,1744917039425,-150.0,0.00074867,60]
[358307276,1744917039434,-150.0,0.00074868,60]
[358307277,1744917039443,-150.0,0.0007487,60]
[358307278,1744917039453,-150.0,0.00074874,60]
[358307279,1744917039462,-150.0,0.00074876,60]
[358307280,1744917039472,-150.0,0.00074877,60]
[358307281,1744917039482,-150.0,0.00074878,60]
[358307282,1744917039492,-150.0,0.00074882,60]
[358307283,1744917039501,-150.0,0.00074893,60]
[358307284,1744917039510,-150.0,0.00074893,60]
[358307285,1744917039519,-150.0,0.00074894,60]
[358307286,1744917039529,-150.0,0.00074894,60]
[358307287,1744917039538,-150.0,0.00074896,60]
[358307288,1744917039547,-150.0,0.00074896,60]
[358307289,1744917039556,-150.0,0.00074896,60]
[358307290,1744917039566,-389.72617771,0.00074899,7]
[358307291,1744917039575,-8906.92882406,0.000749,2]
[358307292,1744917039590,-278.48997594,0.000749,2]